Cogmind - Beta 16 @@@ ROGUE MODE // 2026.01.27 @ 22:03:26 Player: luckinvolved Result: Destroyed by B-86 Titan with Matter Neutralizer Performance ------------- Evolutions (6) 3000 Regions Visited (21) 4200 Robots Destroyed (224) 1120 Value Destroyed (5740) 5740 Prototype IDs (85) 1700 Alien Tech Used (0) 0 Bonus (1052) 1052 TOTAL SCORE: 16812 Bonus ------- High Alert Combat Kills 452 Aligned with FarCom 300 Met Data Miner 300 Cogmind --------- Core Integrity 0/1150 Matter 213/300 Energy 86/100 System Corruption 13% Temperature Cool (9) Movement Core (200) Ox3 Location -4/Factory Parts ------- > --- POWER (1) -------- (None) > --- PROPULSION (6) --- (None) > --- UTILITY (10) ----- Structural Scanner Improved Signal Interpreter Advanced Signal Interpreter Advanced Signal Interpreter Advanced Signal Interpreter Experimental Hacking Suite System Shield Authchip [Propulsion] > --- WEAPON (2) ------- Heavy Proton Missile Launcher > --- INVENTORY (5) ---- Light Antimatter Reactor Advanced Power Amplifier Experimental EM Disruption Field Improved Datajack Improved Remote Datajack Peak State ------------ > --- POWER ------------ Enhanced Fission Core > --- PROPULSION ------- Improved Cesium-ion Thruster Improved Cesium-ion Thruster Improved Cesium-ion Thruster Cooled VTOL Module Experimental Cesium-ion Thruster Advanced Surge Thruster > --- UTILITY ---------- Medium Storage Unit Advanced Signal Interpreter Cloaking Device Advanced Hacking Suite Advanced Hacking Suite Experimental Hacking Suite Improved System Shield Advanced System Shield > --- WEAPON ----------- Power Sword Lance > --- INVENTORY -------- Enhanced Fission Core Advanced Surge Thruster Advanced Surge Thruster Power Amplifier ECM Suite Authchip [Propulsion] Authchip [Processor] Supersonic Drone Bay Remote Datajack [Rating: 98] Favorites ----------- Power Heavy Ion Engine Engine Heavy Ion Engine Power Core Enhanced Nuclear Core Reactor Cold Fusion Reactor Propulsion Improved Cesium-ion Thruster Treads Advanced Treads Leg Aluminum Leg Wheel Armored Wheel Hover Unit Combat Gravmag System Flight Unit Improved Cesium-ion Thruster Utility Huge Storage Unit Device Improved Heat Sink Storage Huge Storage Unit Processor Improved Signal Interpreter Hackware Hacking Suite Protection Medium Armor Plating Weapon Advanced Beam Cannon Energy Gun Heavy Laser Energy Cannon Advanced Beam Cannon Ballistic Gun Light Assault Rifle Launcher Rocket Launcher Special Weapon Remote Datajack Impact Weapon Impact Mace Slashing Weapon Chainsword Piercing Weapon Spear Special Melee Weapon Improved Datajack Build | -11 -10 -10 -9 -9 -9 -8 -8 -7 -7 -7 -6 -6 -6 -6 -6 -6 -5 -5 -4 -4 -4 ------- Run | Yrd Mat Min Mat Min Exi Min Mat Fac Was Fac Fac Was Fac Low Low Dat Pro Fac Fac Was Fac Slots Evolved 12 | . . . 2 . . . 2 2 . . 2 . . . . . . 2 2 . . Power . | . . . . . . . . . . . . . . . . . . . . . . Propulsion 4 | . . . 1 . . . 1 . . . 1 . . . . . . 1 . . . Utility 8 | . . . 1 . . . 1 2 . . 1 . . . . . . 1 2 . . Weapon . | . . . . . . . . . . . . . . . . . . . . . . Parts Attached 201 | 7 15 7 12 6 1 3 39 24 . 22 14 1 8 . . . . 24 11 1 6 Power 24 | 1 2 2 1 . . 1 4 4 . 3 1 . 1 . . . . 1 2 . 1 Engine 16 | 1 2 2 1 . . 1 4 3 . 1 . . 1 . . . . . . . . Core 6 | . . . . . . . . 1 . 2 . . . . . . . 1 1 . 1 Reactor 2 | . . . . . . . . . . . 1 . . . . . . . 1 . . Propulsion 44 | 2 3 . 4 3 . . 14 5 . 3 2 . . . . . . 6 2 . . Treads 14 | 2 1 . 3 3 . . 5 . . . . . . . . . . . . . . Leg 5 | . . . . . . . 5 . . . . . . . . . . . . . . Wheel 3 | . 2 . 1 . . . . . . . . . . . . . . . . . . Hover 1 | . . . . . . . . . . . . . . . . . . . 1 . . Flight 21 | . . . . . . . 4 5 . 3 2 . . . . . . 6 1 . . Utility 92 | 2 8 1 2 1 . 1 14 9 . 13 9 1 6 . . . . 14 6 1 4 Device 38 | 1 4 . . . . . 4 7 . 4 1 1 4 . . . . 7 1 1 3 Storage 5 | 1 2 . . . . . . . . 1 1 . . . . . . . . . . Processor 16 | . 1 . . . . . 4 1 . 4 2 . 1 . . . . . 2 . 1 Hackware 21 | . . . . . . . 2 1 . 3 4 . 1 . . . . 7 3 . . Protection 12 | . 1 1 2 1 . 1 4 . . 1 1 . . . . . . . . . . Artifact . | . . . . . . . . . . . . . . . . . . . . . . Weapon 41 | 2 2 4 5 2 1 1 7 6 . 3 2 . 1 . . . . 3 1 . 1 Energy Gun 3 | . 1 . 1 . . . 1 . . . . . . . . . . . . . . Energy Cannon 7 | . 1 2 3 . 1 . . . . . . . . . . . . . . . . Ballistic Gun 6 | 2 . 1 . . . . 3 . . . . . . . . . . . . . . Ballistic Cannon . | . . . . . . . . . . . . . . . . . . . . . . Launcher 10 | . . 1 . 2 . 1 . 4 . 1 . . . . . . . . . . 1 Special Weapon 1 | . . . . . . . . . . . 1 . . . . . . . . . . Impact Weapon 3 | . . . 1 . . . . . . . 1 . 1 . . . . . . . . Slashing Weapon 5 | . . . . . . . 2 1 . . . . . . . . . 1 1 . . Piercing Weapon 2 | . . . . . . . . . . 1 . . . . . . . 1 . . . Special Melee Weapon 4 | . . . . . . . 1 1 . 1 . . . . . . . 1 . . . Unidentified Prototypes 16 | . . . 3 . . . 2 5 . . 1 . . . . . . 3 . 1 1 Corrupted Parts 1 | . . . . . . . . . . . . . . . . . . 1 . . . System Corruption 10 | . . . . . . . . . . . . . . . . . . 10 . . . Parts Lost 72 | . 6 . 3 4 . 1 19 6 . 6 2 . . . . . . 15 5 1 4 Power 6 | . 1 . . . . . 2 1 . . . . . . . . . 1 . . 1 Propulsion 23 | . 2 . . 3 . . 8 1 . . . . . . . . . 7 2 . . Utility 30 | . 2 . 2 1 . 1 5 1 . 5 1 . . . . . . 6 3 1 2 Weapon 13 | . 1 . 1 . . . 4 3 . 1 1 . . . . . . 1 . . 1 Highest Loss Streak 11 | . 2 . 1 3 . 1 4 3 . 2 2 . . . . . . 11 2 1 3 To Critical Strikes . | . . . . . . . . . . . . . . . . . . . . . . Average Backups 16 | 3 13 24 24 21 24 24 23 4 5 7 9 10 9 10 10 10 10 9 4 4 4 Power 1 | . . 2 1 2 2 2 4 . . . 1 1 1 1 1 1 1 1 . 1 1 Propulsion 2 | 1 2 3 4 2 2 2 2 1 1 1 1 1 2 3 3 3 3 2 . . . Utility 7 | . 6 11 11 10 12 12 10 2 3 4 5 6 6 6 6 6 6 4 3 1 1 Weapon 3 | . 2 6 5 5 6 6 5 . . . . . . . . . . . . . . Tool/Special . | . . . . . . . . . . . . . . . . . . . . . . Unused Backups 55 | . 5 2 8 . . 1 19 7 . 3 1 . 1 . . . . 5 1 . 2 Power 12 | . 1 2 2 . . . 6 1 . . . . . . . . . . . . . Propulsion 14 | . 2 . 3 . . . . 5 . 1 . . 1 . . . . 2 . . . Utility 21 | . 2 . . . . 1 9 1 . 2 1 . . . . . . 3 1 . 1 Weapon 6 | . . . 3 . . . 3 . . . . . . . . . . . . . . Tool/Special 2 | . . . . . . . 1 . . . . . . . . . . . . . 1 Average Slot Usage (%) 94 | . 97 100 99 99 80 97 94 97 92 93 96 93 99 100 100 100 100 92 53 52 56 Engine 8 | . 14 14 11 11 11 11 8 6 . . . . 5 6 6 6 6 2 . . . Treads 16 | . 23 . 30 32 33 33 26 . . . . . . . . . . . . . . Wheel 1 | . 3 28 2 . . . . . . . . . . . . . . . . . . Flight 11 | . . . . . . . . 29 30 30 33 33 33 33 33 33 33 33 8 . . Device 9 | . 5 3 10 10 11 11 10 17 15 10 6 6 5 6 6 6 6 5 4 6 7 Storage 8 | . 14 14 11 11 11 11 8 . . 4 6 6 6 6 6 6 6 4 . . . Processor 4 | . 6 . . . . . 3 7 7 9 10 13 13 13 13 13 13 6 10 15 19 Hackware 7 | . . . . . . . . 20 23 15 20 20 20 20 20 20 20 26 20 19 15 Protection 5 | . . 10 10 11 11 9 11 . . . . . . . . . . . . . . Energy Cannon 7 | . 7 14 21 20 3 13 3 . . . . . . . . . . . . . . Ballistic Gun 3 | . 17 11 . . . . 10 . . . . . . . . . . . . . . Slashing Weapon 1 | . . . . . . . . 7 7 2 . . . . . . . 3 4 5 4 Peak Build Rating 98 | 7 15 20 30 29 31 34 38 63 59 60 71 71 81 81 81 81 81 98 86 69 77 Average Rating 39 | 5 9 16 28 27 24 30 30 50 59 52 63 67 74 81 80 81 81 87 69 66 66 On Entrance 48 | . 7 15 20 29 28 31 29 38 59 59 46 67 68 81 81 81 81 81 38 66 69 Avg Prop Armor Cover (%) 6 | . 12 . 7 . . . 4 3 . 3 . . . . . . . 7 . . . Naked Turns . | . . . . . . . . . . . . . . . . . . . . . . Heaviest Build 110 | 14 90 103 107 109 106 110 104 21 13 23 28 27 33 28 28 28 28 29 18 8 13 Greatest Support 82 | 40 40 24 66 67 67 67 82 24 24 25 32 28 32 32 32 32 32 36 19 14 14 Greatest Overweight (x) 10 | . 7 4 8 2 1 1 10 . . 4 . . 1 . . . . . 5 . 3 Average Overweight (x) . | . 1 3 1 1 1 1 . . . . . . . . . . . . . . . Largest Inventory Capacity 25 | 8 25 25 25 25 25 25 25 5 5 10 10 10 10 10 10 10 10 10 5 5 5 Average Capacity 17 | 7 15 25 25 25 25 25 24 5 5 8 10 10 10 10 10 10 10 9 5 5 5 Most Carried 25 | 5 25 25 25 24 25 25 25 5 5 10 10 10 10 10 10 10 10 10 5 4 5 Average Carried 16 | 3 13 24 24 21 24 24 23 4 5 7 9 9 9 10 10 10 9 9 4 4 4 Final Capacity 25 | 8 25 25 25 25 25 25 5 5 5 10 10 10 10 10 10 10 10 5 5 5 5 Final Carried 25 | 5 25 25 24 22 25 25 5 5 5 8 10 10 10 10 10 10 10 5 4 4 5 Class Distribution -------------------- 51% | Mutant 19% | Hacker-Scout 10% | Scavenger-Mutant 7% | Hacker-Sprinter 4% | Wizard-Sprinter Dominant Class ---------------- Mutant | -10/Materials Mutant | -10/Mines Mutant | -9/Materials Mutant | -9/Mines Mutant | -9/Exiles Mutant | -8/Mines Scavenger-Mutant | -8/Materials Hacker-Scout | -7/Factory Hacker-Sprinter | -7/Waste Hacker-Scout | -7/Factory Hacker-Scout | -6/Factory Hacker-Scout | -6/Waste Hacker-Scout | -6/Factory Hacker-Scout | -6/Lower Caves Hacker-Scout | -6/Lower Caves Hacker-Scout | -6/Data Miner Hacker-Scout | -5/Proximity Caves Wizard-Sprinter | -5/Factory Wizard-Sprinter | -4/Factory Hacker-Mutant | -4/Waste Hacker-Mutant | -4/Factory Resources | -11 -10 -10 -9 -9 -9 -8 -8 -7 -7 -7 -6 -6 -6 -6 -6 -6 -5 -5 -4 -4 -4 ----------- Run | Yrd Mat Min Mat Min Exi Min Mat Fac Was Fac Fac Was Fac Low Low Dat Pro Fac Fac Was Fac Matter Collected 4632 | 326 429 133 248 179 . 64 1404 546 . 288 257 121 84 51 30 . . 268 131 . 73 Remotely . | . . . . . . . . . . . . . . . . . . . . . . Salvage Created 8766 | 138 1125 260 1753 37 . 32 2450 878 . 481 449 . 641 . . . . 327 122 . 73 Parts 473 | 16 60 22 99 2 . 10 116 57 . 27 24 . 14 . . . . 14 8 . 4 Haulers Intercepted 36 | . 2 . 6 . . . 4 10 . 5 3 . 4 . . . . 2 . . . Recyclers Shooed 6 | . . . 3 . . 1 . . . 2 . . . . . . . . . . . Parts Field Recycled . | . . . . . . . . . . . . . . . . . . . . . . Retrieved Matter . | . . . . . . . . . . . . . . . . . . . . . . Parts Self-Destructed 5 | . . . . . . . . . . . . . . 5 . . . . . . . Prevented 2 | . . . . . . . . . . . . . . 2 . . . . . . . Parts Restored . | . . . . . . . . . . . . . . . . . . . . . . Kills | -11 -10 -10 -9 -9 -9 -8 -8 -7 -7 -7 -6 -6 -6 -6 -6 -6 -5 -5 -4 -4 -4 ------- Run | Yrd Mat Min Mat Min Exi Min Mat Fac Was Fac Fac Was Fac Low Low Dat Pro Fac Fac Was Fac Combat Hostiles Destroyed 124 | . 19 7 31 4 . 8 42 4 . 4 3 . . . . . . . 2 . . Melee 2 | . . . . . . . . . . . . . . . . . . . 2 . . Guns 38 | . 10 1 . . . . 27 . . . . . . . . . . . . . . Cannons 58 | . 8 4 30 3 . . 13 . . . . . . . . . . . . . . AOE 25 | . 1 2 . 1 . 8 2 4 . 4 3 . . . . . . . . . . Classes Destroyed 17 | 2 6 1 2 1 . . 4 1 . . . . . . . . . . . . . Worker 7 | . 1 1 1 . . . . . . . . . . . . . . 4 . . . Builder 14 | . 1 . . 1 . . 4 2 . 3 . . 1 . . . . 1 . . 1 Tunneler 10 | 4 . 1 1 . . 1 . 2 . . . . . . . . . . 1 . . Hauler 36 | . 2 . 6 . . . 4 10 . 5 3 . 4 . . . . 2 . . . Recycler 7 | 1 1 . . . . . 2 2 . . . . 1 . . . . . . . . Mechanic 2 | . . . 1 . . . . . . . . . . . . . . . . . 1 Operator 11 | . 2 . 3 . . . 1 1 . 2 2 . . . . . . . . . . Watcher 17 | . 2 . 4 . . . . 3 . 2 2 . 4 . . . . . . . . Swarmer 23 | . . 2 3 . . 8 . 3 . 4 3 . . . . . . . . . . Grunt 76 | . 19 5 19 . . . 33 . . . . . . . . . . . . . . Brawler 1 | . . . . . . . 1 . . . . . . . . . . . . . . Duelist 2 | . . . . . . . 2 . . . . . . . . . . . . . . Protector 1 | . . . . . . . 1 . . . . . . . . . . . . . . Sentry 13 | . . . 9 . . . 4 . . . . . . . . . . . . . . Hunter 1 | . . . . . . . 1 . . . . . . . . . . . . . . Programmer 3 | . . . . . . . . 1 . . . . . . . . . . 2 . . Assembled 4 | . . . . 4 . . . . . . . . . . . . . . . . . Best Kill Streak 8 | 3 7 2 8 2 . 5 7 3 . 4 3 . 3 . . . . 2 2 . 1 Combat Bots Only 7 | . 7 2 4 2 . 4 6 2 . 4 3 . . . . . . . 2 . . Max Kills in Single Turn 4 | 1 1 2 2 1 . 4 2 1 . 2 2 . 1 . . . . 1 1 . 1 Gunslinging . | . . . . . . . . . . . . . . . . . . . . . . Exploded 3 | . 1 2 . 1 . 3 1 1 . 2 2 . . . . . . . . . . Melee 1 | . . . . . . . . . . . . . . . . . . . 1 . . Uniques/NPCs Destroyed . | . . . . . . . . . . . . . . . . . . . . . . Combat | -11 -10 -10 -9 -9 -9 -8 -8 -7 -7 -7 -6 -6 -6 -6 -6 -6 -5 -5 -4 -4 -4 -------- Run | Yrd Mat Min Mat Min Exi Min Mat Fac Was Fac Fac Was Fac Low Low Dat Pro Fac Fac Was Fac Hostile Shots Fired 1068 | . 80 41 100 17 . 16 272 158 . 108 34 . 2 8 . . 4 67 94 2 65 Missed 415 | . 20 11 22 4 . 5 65 95 . 64 18 . 2 2 . . 1 34 41 . 31 Hits 653 | . 60 30 78 13 . 11 207 63 . 44 16 . . 6 . . 3 33 53 2 34 Melee 15 | . . . . . . . 7 . . . . . . . . . . 6 . 2 . Projectile 638 | . 60 30 78 13 . 11 200 63 . 44 16 . . 6 . . 3 27 53 . 34 AOE 18 | . . . . 12 . . . 3 . . . . . . . . . 3 . . . Critical Strikes 24 | . 1 1 2 . . . 9 2 . 1 . . . . . . . 3 2 2 1 Part Disruptions 1 | . . . . . . . . . . 1 . . . . . . . . . . . Damage Taken 11232 | . 771 372 939 547 . 178 3082 984 . 587 278 . . 83 . . 54 1465 884 81 927 Core 3094 | . 89 42 77 60 . 16 496 341 . 206 62 . . . . . 32 495 413 71 694 Absorbed by Shields 138 | . . . . . . . 96 4 . . . . . . . . . . 38 . . Redirected to Shielding 3 | . . . . . . . . . . 3 . . . . . . . . . . . Regen/Repaired (Parts) 373 | . 61 . . . . . . . . 148 . . 80 . . . . 84 . . . Core Remaining (%) 53 | 100 . 47 . . . 61 9 . . 21 . . . . . . 88 50 . . . Volleys Fired 428 | 14 84 30 98 12 . 7 160 12 . 3 5 . 3 . . . . . . . . Largest 2 | 2 2 2 2 2 . 2 2 1 . 1 1 . 1 . . . . . . . . Hottest 137 | 40 88 88 136 136 . 68 137 39 . 36 36 . 5 . . . . . . . . Shots Fired 815 | 28 161 53 198 21 1 12 318 12 . 3 5 . 3 . . . . . . . . Gun 415 | 28 132 23 2 . . . 230 . . . . . . . . . . . . . . Cannon 357 | . 29 29 196 15 1 2 85 . . . . . . . . . . . . . . Launcher 37 | . . 1 . 6 . 10 3 12 . 3 2 . . . . . . . . . . Special 6 | . . . . . . . . . . . 3 . 3 . . . . . . . . Kinetic 349 | 28 123 23 2 . . . 173 . . . . . . . . . . . . . . Thermal 414 | . 29 29 196 15 1 2 142 . . . . . . . . . . . . . . Explosive 37 | . . 1 . 6 . 10 3 12 . 3 2 . . . . . . . . . . Electromagnetic 9 | . 9 . . . . . . . . . . . . . . . . . . . . Robot Hit Streak 33 | 3 22 9 21 6 . 2 33 7 . . 4 . 6 . . . . . . . . Robot Miss Streak 4 | 3 4 4 4 3 1 2 2 . . 3 . . . . . . . . . . . Penetration Max 1 | . . . . . . . 1 . . . . . . . . . . . . . . Secondary Targets 3 | . . . . . . . 3 . . . . . . . . . . . . . . Max Gunslinging Chain 1 | . . . . . . . 1 . . . . . . . . . . . . . . Shots Hit Robots 649 | 14 110 30 120 12 . 6 223 50 . 23 16 . 22 . . . . 14 7 . 2 Core Hits 294 | 7 49 13 49 8 . 10 102 23 . 15 9 . 4 . . . . 2 2 . 1 Critical Kills 6 | . . . 1 . . . 3 . . . . . 2 . . . . . . . . Critical Parts Destroyed 5 | . . . . . . . 4 . . . . . 1 . . . . . . . . Critical Strikes 26 | . . . 1 . . . 9 6 . 3 2 . 3 . . . . 2 . . . Burn 2 | . . . . . . . 2 . . . . . . . . . . . . . . Meltdown 2 | . . . 1 . . . 1 . . . . . . . . . . . . . . Destroy 6 | . . . . . . . 6 . . . . . . . . . . . . . . Smash 3 | . . . . . . . . . . . . . 3 . . . . . . . . Sever 8 | . . . . . . . . 6 . 1 . . . . . . . 1 . . . Impale 5 | . . . . . . . . . . 2 2 . . . . . . 1 . . . Melee Attacks 343 | . . . 7 . . . 9 110 . 62 35 . 42 . 3 . . 55 14 . 6 Impact 52 | . . . 7 . . . . . . . . . 42 . 3 . . . . . . Slashing 184 | . . . . . . . 9 107 . 18 . . . . . . . 31 13 . 6 Piercing 100 | . . . . . . . . . . 42 35 . . . . . . 23 . . . Sneak Attacks 56 | . . . . . . . . 23 . 11 4 . 6 . . . . 8 2 . 2 Combat Hostiles . | . . . . . . . . . . . . . . . . . . . . . . Follow-up Attacks . | . . . . . . . . . . . . . . . . . . . . . . Damage Inflicted 19175 | 145 1437 600 2938 487 . 738 4676 3056 . 1514 739 . 1201 . . . . 927 423 . 294 Guns 4128 | 145 931 153 12 . . . 2887 . . . . . . . . . . . . . . Cannons 5094 | . 471 366 2721 224 . 40 1272 . . . . . . . . . . . . . . Explosions 2416 | . 30 81 . 85 . 684 493 630 . 263 150 . . . . . . . . . . Melee 7105 | . . . . . . . . 2426 . 1251 589 . 1201 . . . . 927 423 . 288 Ramming 432 | . 5 . 205 178 . 14 24 . . . . . . . . . . . . . 6 Kinetic 3264 | 145 868 153 12 . . . 2086 . . . . . . . . . . . . . . Thermal 6223 | . 501 366 2721 224 . 40 2371 . . . . . . . . . . . . . . Explosive 2088 | . . 81 . 85 . 684 195 630 . 263 150 . . . . . . . . . . Electromagnetic 63 | . 63 . . . . . . . . . . . . . . . . . . . . Impact 1201 | . . . . . . . . . . . . . 1201 . . . . . . . . Slashing 4161 | . . . . . . . . 2426 . 605 . . . . . . . 419 423 . 288 Piercing 1743 | . . . . . . . . . . 646 589 . . . . . . 508 . . . Highest Corruption 13 | . 2 2 3 3 3 3 . 1 7 8 . . . 1 1 1 1 11 5 13 13 Average Corruption 3 | . 1 2 2 3 3 3 . 1 2 7 . . . 1 1 1 1 10 2 10 13 Corruption Purged 1 | . . . . . . . . . . 1 . . . . . . . . . . . Corruption Blocked . | . . . . . . . . . . . . . . . . . . . . . . Effects 186 | . 29 8 27 26 18 17 . 3 1 38 . . . . 1 . . 3 2 3 10 Message Errors 55 | . 7 5 8 6 5 6 . 1 . 11 . . . . . . . . 2 . 4 Matter Fused 46 | . 9 . 4 8 3 3 . 1 . 14 . . . . . . . 1 . 1 2 Heat Flow Errors 12 | . 1 . 4 1 4 . . . . 2 . . . . . . . . . . . Energy Discharges 26 | . 7 . 4 3 . 4 . . . 5 . . . . . . . 1 . 1 1 Parts Rejected 1 | . 1 . . . . . . . . . . . . . . . . . . . . Parts Fused 4 | . . . . 1 1 1 . . . . . . . . . . . 1 . . . Data Loss (minor) 28 | . 3 3 3 4 3 2 . 1 1 5 . . . . 1 . . . . . 2 Data Loss (major) 7 | . . . 1 3 1 1 . . . . . . . . . . . . . . 1 Misfires 4 | . 1 . 2 . 1 . . . . . . . . . . . . . . . . Alerts 3 | . . . 1 . . . . . . 1 . . . . . . . . . 1 . Overload Shots . | . . . . . . . . . . . . . . . . . . . . . . Overflow Damage 1749 | . . . 28 6 . 15 93 391 . 289 107 . 199 . . . . 322 91 . 208 Projectiles 34 | . . . 28 6 . . . . . . . . . . . . . . . . . Explosions 112 | . . . . . . 15 93 4 . . . . . . . . . . . . . Melee 1603 | . . . . . . . . 387 . 289 107 . 199 . . . . 322 91 . 208 Knockbacks 8 | . . . 1 4 . 1 . . . . . . 2 . . . . . . . . Impact 8 | . . . 1 4 . 1 . . . . . . 2 . . . . . . . . Kinetic . | . . . . . . . . . . . . . . . . . . . . . . Secondary . | . . . . . . . . . . . . . . . . . . . . . . Self-Inflicted Damage 81 | . . . . . . 51 . 24 . 3 . . . . . . . . . . 3 Shots 4 | . . . . . . 2 . 1 . 1 . . . . . . . . . . . Rammed 36 | . 1 . 19 11 . 2 2 . . . . . . . . . . . . . 1 Targets Rammed 42 | . 1 . 22 12 . 2 4 . . . . . . . . . . . . . 1 Kicked 1 | . . . . . . . 1 . . . . . . . . . . . . . . Crushed 5 | . . . 3 1 . . 1 . . . . . . . . . . . . . . Highest Temperature 458 | . 264 290 325 315 262 . 458 22 . 274 103 . 56 96 78 . 118 426 . . . Average Temperature 85 | . 53 106 70 117 106 . 94 5 . 148 21 . 33 40 28 . 45 98 . . . Received Heat Transfer 3125 | . 444 222 450 . . 27 1602 90 . 45 36 . . 18 . . . 27 23 . 141 Effects 11 | . . . 1 1 . . 4 . . . . . . . . . . 5 . . . Energy Bleed 3 | . . . 1 . . . . . . . . . . . . . . 2 . . . Interference 6 | . . . . . . . 3 . . . . . . . . . . 3 . . . Short Circuit 1 | . . . . . . . 1 . . . . . . . . . . . . . . Damage (minor) 1 | . . . . 1 . . . . . . . . . . . . . . . . . Siege Activations . | . . . . . . . . . . . . . . . . . . . . . . Martial Activations . | . . . . . . . . . . . . . . . . . . . . . . Shielding Activations . | . . . . . . . . . . . . . . . . . . . . . . Robots Disrupted . | . . . . . . . . . . . . . . . . . . . . . . Combat Hostiles . | . . . . . . . . . . . . . . . . . . . . . . Robots Corrupted 4 | . . . . . . . . . . . . . 4 . . . . . . . . Combat Hostiles . | . . . . . . . . . . . . . . . . . . . . . . Parts Fried 5 | . . . . . . . . . . . . . 5 . . . . . . . . Impact Corruptions 9 | . . . . . . . . . . . . . 9 . . . . . . . . Robots Melted 2 | . . . 1 . . . 1 . . . . . . . . . . . . . . Combat Hostiles 1 | . . . 1 . . . . . . . . . . . . . . . . . . Parts Melted 15 | . 1 1 7 . . . 6 . . . . . . . . . . . . . . Heat Transferred 10765 | . 901 629 4662 407 . 74 4092 . . . . . . . . . . . . . . Parts Sabotaged . | . . . . . . . . . . . . . . . . . . . . . . Parts Stolen . | . . . . . . . . . . . . . . . . . . . . . . Parts Stripped . | . . . . . . . . . . . . . . . . . . . . . . Power Chain Reactions 1 | . 1 . . . . . . . . . . . . . . . . . . . . Alert | -11 -10 -10 -9 -9 -9 -8 -8 -7 -7 -7 -6 -6 -6 -6 -6 -6 -5 -5 -4 -4 -4 ------- Run | Yrd Mat Min Mat Min Exi Min Mat Fac Was Fac Fac Was Fac Low Low Dat Pro Fac Fac Was Fac Maximum Alert Level 3 | . . . 2 1 . . 3 2 1 1 1 . . . . . . 1 . . . Low Security (%) 66 | 100 100 100 46 96 . 100 16 51 . 54 77 100 100 . . . . 82 100 100 100 Level 1 14 | . . . 21 3 . . 8 33 100 45 22 . . . . . . 17 . . . Level 2 13 | . . . 31 . . . 44 15 . . . . . . . . . . . . . Level 3 4 | . . . . . . . 30 . . . . . . . . . . . . . . Level 4 . | . . . . . . . . . . . . . . . . . . . . . . Level 5 . | . . . . . . . . . . . . . . . . . . . . . . High Security . | . . . . . . . . . . . . . . . . . . . . . . Max Security . | . . . . . . . . . . . . . . . . . . . . . . Peak Influence 874 | 15 172 61 532 211 . 122 874 611 213 307 312 103 82 . . . . 273 136 33 30 Initial 385 | . . 16 5 201 . . 36 385 213 142 148 103 51 . . . . 21 34 33 2 Average 192 | 2 59 20 253 29 . 29 525 246 211 179 164 91 39 . . . . 116 49 21 7 Influence Increases 7880 | 25 591 204 1076 41 . 250 1665 1335 . 741 498 . 237 15 . . 45 800 272 . 85 Destroy 0b10 Robot/C 2380 | . 380 140 620 . . 160 820 80 . 80 60 . . . . . . . 40 . . Destroy 0b10 Robot/NC 510 | 25 45 10 80 5 . 5 60 95 . 55 30 . 50 . . . . 35 5 . 10 Destroy Leader 650 | . 108 30 210 . . 20 168 42 . 24 20 . 14 . . . . 4 10 . . Successful Hack 616 | . 13 . 59 . . . 15 157 . 147 73 . 94 . . . . 48 10 . . Select Force Hacks 150 | . 30 . 60 . . . 30 . . . . . . . . . . 30 . . . Disable Machine 255 | . 15 15 . . . . 105 30 . 30 . . 15 . . . . . . . 45 Anti-Garrison Action 150 | . . . . . . . 150 . . . . . . . . . . . . . . Destroy Structure 499 | . . 9 17 36 . 65 62 136 . 45 30 . 19 . . . . 68 12 . . Partial Spotted 600 | . . . . . . . . 180 . 120 75 . 15 . . . . 180 30 . . Lose Combat Pursuer 2070 | . . . 30 . . . 255 615 . 240 210 . 30 15 . . 45 435 165 . 30 Influence Decreases 7880 | 25 548 232 573 555 4 156 910 1575 406 641 505 223 310 10 5 . 10 764 247 93 88 Entered New Map 1824 | . . 27 10 317 4 . 58 464 396 61 155 193 22 . 2 . . 14 37 63 1 Time Decay 4636 | 25 488 205 533 198 . 146 662 601 10 490 310 30 288 10 3 . 10 380 160 20 67 Search Patrol Dispatched 500 | . . . . . . . . 300 . . . . . . . . . 200 . . . Lost Part 700 | . 60 . 30 40 . 10 190 60 . 60 20 . . . . . . 150 50 10 20 Lost Ally 70 | . . . . . . . . . . 30 20 . . . . . . 20 . . . Purge Threat 150 | . . . . . . . . 150 . . . . . . . . . . . . . Squads Dispatched 89 | . 6 1 8 . . . 12 18 . 18 9 . 4 . . . . 9 3 . 1 Investigation 43 | . 4 1 5 . . . 3 6 . 12 2 . 3 . . . . 4 2 . 1 Extermination 17 | . . . . . . . . 5 . 5 4 . 1 . . . . 2 . . . Reinforcement 24 | . 2 . 3 . . . 4 7 . 1 3 . . . . . . 3 1 . . Assault 3 | . . . . . . . 3 . . . . . . . . . . . . . . Garrison 2 | . . . . . . . 2 . . . . . . . . . . . . . . Intercept . | . . . . . . . . . . . . . . . . . . . . . . Searches Triggered 5 | . . . . . . . . 3 . . . . . . . . . 2 . . . Unchained Authorized 2 | . . . . . . . . . . . . . 1 . . . . 1 . . . Data Miner Redirects 3 | . . . . . . . . . . . . . . . . . . 1 2 . . Construction Impeded 3 | . . . 1 . . . . . . 1 1 . . . . . . . . . . Haulers Reinforced 3 | . . . . . . . . 3 . . . . . . . . . . . . . Active Scanning Responses . | . . . . . . . . . . . . . . . . . . . . . . Cargo Convoy Interrupts 2 | . . . . . . . . 1 . . . . . . . . . 1 . . . Stealth | -11 -10 -10 -9 -9 -9 -8 -8 -7 -7 -7 -6 -6 -6 -6 -6 -6 -5 -5 -4 -4 -4 --------- Run | Yrd Mat Min Mat Min Exi Min Mat Fac Was Fac Fac Was Fac Low Low Dat Pro Fac Fac Was Fac Distress Signals 25 | . 3 . 4 . . . 6 4 . 1 1 . . . . . . 4 2 . . Communications Jammed . | . . . . . . . . . . . . . . . . . . . . . . Distress Signals . | . . . . . . . . . . . . . . . . . . . . . . Times Spotted 459 | . 24 8 49 5 . 11 81 67 6 43 29 . 9 11 5 . 5 73 21 5 7 Peak Tracking Total 12 | . 5 3 7 2 . 4 8 12 6 8 8 . 4 11 5 . 5 10 9 5 6 Tactical Retreats 71 | . . . 1 . . . 7 20 . 10 5 . 1 1 . . 1 19 5 . 1 ECM-based Alert Blocks 30 | . . . . . . . . 3 . 1 . . . . . . . 26 . . . Traps | -11 -10 -10 -9 -9 -9 -8 -8 -7 -7 -7 -6 -6 -6 -6 -6 -6 -5 -5 -4 -4 -4 ------- Run | Yrd Mat Min Mat Min Exi Min Mat Fac Was Fac Fac Was Fac Low Low Dat Pro Fac Fac Was Fac Traps Triggered 18 | . 2 . 2 . . . 1 5 . 1 2 . . . . . . 1 2 . 2 Indirectly . | . . . . . . . . . . . . . . . . . . . . . . Trap Hack Attempts . | . . . . . . . . . . . . . . . . . . . . . . Triggered . | . . . . . . . . . . . . . . . . . . . . . . Disarmed . | . . . . . . . . . . . . . . . . . . . . . . Reprogrammed . | . . . . . . . . . . . . . . . . . . . . . . Reused . | . . . . . . . . . . . . . . . . . . . . . . Traps Extracted . | . . . . . . . . . . . . . . . . . . . . . . Installed . | . . . . . . . . . . . . . . . . . . . . . . Triggered . | . . . . . . . . . . . . . . . . . . . . . . Machines | -11 -10 -10 -9 -9 -9 -8 -8 -7 -7 -7 -6 -6 -6 -6 -6 -6 -5 -5 -4 -4 -4 ---------- Run | Yrd Mat Min Mat Min Exi Min Mat Fac Was Fac Fac Was Fac Low Low Dat Pro Fac Fac Was Fac Machines Disabled 19 | . 1 1 1 . . . 8 2 . 2 . . 1 . . . . . . . 3 Max in Single Turn 3 | . 1 1 1 . . . 3 1 . 1 . . 1 . . . . . . . 1 Garrison Access 13 | . . . . . . . 1 3 . 2 2 . . . . . . 4 1 . . Machines Repaired . | . . . . . . . . . . . . . . . . . . . . . . Machines Dismantled . | . . . . . . . . . . . . . . . . . . . . . . Machines Sabotaged . | . . . . . . . . . . . . . . . . . . . . . . Overloaded Fab Kills . | . . . . . . . . . . . . . . . . . . . . . . Hacking | -11 -10 -10 -9 -9 -9 -8 -8 -7 -7 -7 -6 -6 -6 -6 -6 -6 -5 -5 -4 -4 -4 --------- Run | Yrd Mat Min Mat Min Exi Min Mat Fac Was Fac Fac Was Fac Low Low Dat Pro Fac Fac Was Fac Machines Accessed 151 | . 7 1 14 . 1 . 5 25 . 30 19 . 13 1 . 4 . 27 3 . 1 Terminals 85 | . 5 . 10 . . . 2 15 . 17 13 . 7 . . . . 14 1 . 1 Fabricators 19 | . . . . . . . . 3 . 5 2 . 3 . . . . 5 1 . . Repair Stations 6 | . 1 . . . . . . 1 . 2 . . 1 . . . . 1 . . . Recycling Units 11 | . 1 . 2 . . . 1 . . 3 1 . 1 . . . . 2 . . . Scanalyzers 9 | . . . 2 . . . 1 3 . . 1 . 1 . . . . 1 . . . Garrison Access 14 | . . . . . . . 1 3 . 3 2 . . . . . . 4 1 . . Total Hacks 515 | . 20 1 45 . 1 . 11 76 . 97 69 . 42 1 . 29 . 109 11 . 3 Successful 318 | . 8 1 21 . 1 . 6 38 . 53 48 . 27 1 . 29 . 80 5 . . Failed 194 | . 11 . 23 . . . 4 38 . 44 21 . 15 . . . . 29 6 . 3 Catastrophic 18 | . 1 . 1 . . . 1 3 . 5 2 . 2 . . . . 1 . . 2 Database Lockouts 3 | . 1 . 1 . . . 1 . . . . . . . . . . . . . . Manual 241 | . 19 . 33 . 1 . 4 21 . 42 36 . 17 . . . . 59 6 . 3 Terminals 325 | . 17 . 32 . . . 4 51 . 58 54 . 22 . . . . 80 4 . 3 Fabricators 68 | . . . . . . . . 7 . 20 8 . 14 . . . . 15 4 . . Repair Stations 13 | . 2 . . . . . . 2 . 5 . . 2 . . . . 2 . . . Recycling Units 19 | . 1 . 3 . . . 1 . . 6 3 . 1 . . . . 4 . . . Scanalyzers 33 | . . . 10 . . . 4 12 . . 1 . 3 . . . . 3 . . . Garrison Access 25 | . . . . . . . 2 4 . 8 3 . . . . . . 5 3 . . Terminal Hacks 137 | . 2 1 4 . 1 . 1 18 . 18 23 . 5 1 . 29 . 33 1 . . Record 12 | . . . . . . . . . . . 1 . . . . 11 . . . . . Part Schematic 17 | . 1 . 1 . . . . . . 2 1 . . . . 9 . 3 . . . Robot Schematic 6 | . . . . . . . . . . . . . . . . 6 . . . . . Robot Analysis 1 | . . . . . . . . . . . 1 . . . . . . . . . . Prototype ID Bank 22 | . . . 1 . . . . 5 . 7 3 . . . . 3 . 3 . . . Open Door 2 | . . 1 . . . . . . . . . . . 1 . . . . . . . Level Access Points 1 | . . . . . . . . . . . 1 . . . . . . . . . . Branch Access Points 5 | . . . . . . . . 1 . 1 1 . 1 . . . . 1 . . . Emergency Access Points 2 | . . . . . . . . . . . . . . . . . . 2 . . . Machine Index 1 | . . . . . . . . . . . . . . . . . . 1 . . . Terminal Index 7 | . . . 1 . . . . 1 . 1 1 . 1 . . . . 1 1 . . Fabricator Index 4 | . . . . . . . . 1 . 1 1 . . . . . . 1 . . . Recycling Unit Index 1 | . . . . . . . . . . . 1 . . . . . . . . . . Scanalyzer Index 2 | . . . . . . . . 1 . . 1 . . . . . . . . . . Garrison Index 2 | . . . . . . . . 1 . . 1 . . . . . . . . . . Alert Level 1 | . . . . . . . . . . . . . . . . . . 1 . . . Unreport Threat 1 | . . . . . . . . 1 . . . . . . . . . . . . . Locate Traps 4 | . . . . . . . . . . . 2 . . . . . . 2 . . . Dispatch Records 1 | . . . . . . . . . . . . . . . . . . 1 . . . Maintenance Status 1 | . . . . . . . . 1 . . . . . . . . . . . . . Patrol Status 1 | . . . . . . . . . . . . . . . . . . 1 . . . Transport Status 1 | . . . . . . . . . . . 1 . . . . . . . . . . Extermination Status 3 | . . . . . . . . . . . . . . . . . . 3 . . . Recall Extermination 8 | . . . . . . . . 1 . 1 2 . 1 . . . . 3 . . . Recall Reinforcements 2 | . . . . . . . . . . . 1 . . . . . . 1 . . . Hauler Manifests 11 | . 1 . 1 . . . . 3 . 2 1 . 1 . . . . 2 . . . Registered Components 6 | . . . . . . . 1 1 . 1 1 . . . . . . 2 . . . Registered Prototypes 5 | . . . . . . . . 1 . 1 1 . . . . . . 2 . . . Zone Layout 6 | . . . . . . . . . . 1 1 . 1 . . . . 3 . . . Proto ID Catalog 1 | . . . . . 1 . . . . . . . . . . . . . . . . Fabricator Hacks 28 | . . . . . . . . 4 . 7 4 . 6 . . . . 6 1 . . Network Status 2 | . . . . . . . . 1 . . . . 1 . . . . . . . . Load Schematic 17 | . . . . . . . . 2 . 5 2 . 3 . . . . 4 1 . . Build 9 | . . . . . . . . 1 . 2 2 . 2 . . . . 2 . . . Repair Station Hacks 11 | . 2 . . . . . . 1 . 4 . . 2 . . . . 2 . . . Scan Component 6 | . 1 . . . . . . 1 . 2 . . 1 . . . . 1 . . . Repair 5 | . 1 . . . . . . . . 2 . . 1 . . . . 1 . . . Recycling Unit Hacks 8 | . . . . . . . . . . 3 1 . 1 . . . . 3 . . . Report Inventory 6 | . . . . . . . . . . 3 1 . 1 . . . . 1 . . . Retrieve Matter 1 | . . . . . . . . . . . . . . . . . . 1 . . . Retrieve Components 1 | . . . . . . . . . . . . . . . . . . 1 . . . Scanalyzer 21 | . . . 5 . . . 3 6 . . 1 . 3 . . . . 3 . . . Insert Component 9 | . . . 3 . . . 1 3 . . . . 1 . . . . 1 . . . Analyze 7 | . . . 2 . . . 1 3 . . . . 1 . . . . . . . . Retrieve Study 5 | . . . . . . . 1 . . . 1 . 1 . . . . 2 . . . Garrison Access Hacks 12 | . . . . . . . . 3 . 2 2 . . . . . . 4 1 . . Seal Access 12 | . . . . . . . . 3 . 2 2 . . . . . . 4 1 . . Unauthorized Hacks 101 | . 4 . 12 . . . 2 6 . 19 17 . 10 . . . . 29 2 . . Terminals 83 | . 3 . 10 . . . 1 4 . 16 15 . 9 . . . . 24 1 . . Track 1 | . . . . . . . . . . . . . . . . . . 1 . . . Assimilate 15 | . . . 1 . . . . 2 . 5 4 . 1 . . . . 2 . . . Botnet 33 | . 2 . 3 . . . 1 2 . 5 5 . 4 . . . . 10 1 . . Disrupt 1 | . 1 . . . . . . . . . . . . . . . . . . . . Operators 3 | . . . 1 . . . . . . 1 . . . . . . . 1 . . . Skim 30 | . . . 5 . . . . . . 5 6 . 4 . . . . 10 . . . Fabricators 12 | . . . . . . . . 2 . 3 1 . 1 . . . . 4 1 . . Prioritize 4 | . . . . . . . . . . . 1 . 1 . . . . 2 . . . Haulers 2 | . . . . . . . . 1 . 1 . . . . . . . . . . . Recompile 6 | . . . . . . . . 1 . 2 . . . . . . . 2 1 . . Repair Stations . | . . . . . . . . . . . . . . . . . . . . . . Recycling Units 6 | . 1 . 2 . . . 1 . . . 1 . . . . . . 1 . . . Recyclers 1 | . . . . . . . . . . . 1 . . . . . . . . . . Tunnel 5 | . 1 . 2 . . . 1 . . . . . . . . . . 1 . . . Scanalyzers . | . . . . . . . . . . . . . . . . . . . . . . Garrison Access . | . . . . . . . . . . . . . . . . . . . . . . Data Cores Recovered 1 | . . . . . . . 1 . . . . . . . . . . . . . . Used . | . . . . . . . . . . . . . . . . . . . . . . Hacking Detections 117 | . 6 . 9 . . . 3 20 . 29 17 . 13 . . . . 16 3 . 1 Full Trace Events 30 | . 3 . 4 . . . 1 4 . 10 2 . 3 . . . . 1 1 . 1 Feedback Events 5 | . 2 . . . . . . . . 3 . . . . . . . . . . . Corruption 4 | . 2 . . . . . . . . 2 . . . . . . . . . . . Hackware Fried 1 | . . . . . . . . . . 1 . . . . . . . . . . . Feedback Blocked . | . . . . . . . . . . . . . . . . . . . . . . Robot Schematics Acquired 6 | . . . . . . . . . . . . . . . . 6 . . . . . Robots Built . | . . . . . . . . . . . . . . . . . . . . . . Authchips . | . . . . . . . . . . . . . . . . . . . . . . Time . | . . . . . . . . . . . . . . . . . . . . . . Total Robot Build Rating . | . . . . . . . . . . . . . . . . . . . . . . Part Schematics Acquired 23 | . 1 . 3 . . . 1 2 . 2 1 . 1 . . 9 . 3 . . . Parts Built 10 | . . . . . . . . 1 . 2 2 . 3 . . . . 2 . . . Authchips 4 | . . . . . . . . . . 1 . . 1 . . . . 2 . . . Time 685 | . . . . . . . . 204 . 201 61 . 80 . . . . 139 . . . Total Part Build Rating 64 | . . . . . . . . 8 . 8 12 . 22 . . . . 14 . . . Part Studies Acquired 3 | . . . . . . . 1 . . . 1 . . . . . . 1 . . . Parts Repaired 5 | . 1 . . . . . . . . 2 . . 1 . . . . 1 . . . Time 182 | . 26 . . . . . . . . 105 . . 20 . . . . 31 . . . Parts Recycled . | . . . . . . . . . . . . . . . . . . . . . . Recycled Matter . | . . . . . . . . . . . . . . . . . . . . . . Retrieved Matter . | . . . . . . . . . . . . . . . . . . . . . . Retrieved Components 1 | . . . . . . . . . . . . . . . . . . 1 . . . Parts Scanalyzed 7 | . . . 3 . . . 1 2 . . . . 1 . . . . . . . . Part Schematics Acquired 6 | . . . 2 . . . 1 2 . . . . 1 . . . . . . . . Parts Damaged 1 | . . . . . . . . 1 . . . . . . . . . . . . . Bothacking | -11 -10 -10 -9 -9 -9 -8 -8 -7 -7 -7 -6 -6 -6 -6 -6 -6 -5 -5 -4 -4 -4 ------------ Run | Yrd Mat Min Mat Min Exi Min Mat Fac Was Fac Fac Was Fac Low Low Dat Pro Fac Fac Was Fac Used RIF Installer . | . . . . . . . . . . . . . . . . . . . . . . Robots Hacked 10 | . . . . . . . . 3 . 1 3 . 2 . . . . . 1 . . Non-combat 10 | . . . . . . . . 3 . 1 3 . 2 . . . . . 1 . . Combat . | . . . . . . . . . . . . . . . . . . . . . . Robot Hacks Applied 10 | . . . . . . . . 3 . 1 3 . 2 . . . . . 1 . . no_distress 4 | . . . . . . . . 1 . 1 . . 2 . . . . . . . . find_chute 6 | . . . . . . . . 2 . . 3 . . . . . . . 1 . . Relay Couplers Released 3 | . . . . . . . . . . . . . . . . . . 3 . . . Machine Destruction 3 | . . . . . . . . . . . . . . . . . . 3 . . . Fabnet Peak Effective % . | . . . . . . . . . . . . . . . . . . . . . . Robots Rewired . | . . . . . . . . . . . . . . . . . . . . . . Allies Hacked . | . . . . . . . . . . . . . . . . . . . . . . Hacks Repelled . | . . . . . . . . . . . . . . . . . . . . . . Allies | -11 -10 -10 -9 -9 -9 -8 -8 -7 -7 -7 -6 -6 -6 -6 -6 -6 -5 -5 -4 -4 -4 -------- Run | Yrd Mat Min Mat Min Exi Min Mat Fac Was Fac Fac Was Fac Low Low Dat Pro Fac Fac Was Fac Total Allies 13 | . . . . 2 . . . 1 . 4 3 . 1 . . . . 2 . . . Largest Group 2 | . . . . 2 2 . . 1 . 1 2 . 1 1 . . . 1 . . . Highest-Rated Group 52 | . . . . 52 52 . . 26 . 26 34 . 26 23 . . . 10 . . . Highest-Rated Ally 31 | . . . . 31 31 . . 26 . 26 26 . 26 23 . . . 10 . . . Total Orders 6 | . . . . . . . . . . . . . 2 . 1 . . 2 1 . . STAY 2 | . . . . . . . . . . . . . 1 . . . . 1 . . . FOLLOW 1 | . . . . . . . . . . . . . 1 . . . . . . . . EXPLORE 3 | . . . . . . . . . . . . . . . 1 . . 1 1 . . Ally Attacks . | . . . . . . . . . . . . . . . . . . . . . . Total Damage . | . . . . . . . . . . . . . . . . . . . . . . Kills . | . . . . . . . . . . . . . . . . . . . . . . Allies Corrupted . | . . . . . . . . . . . . . . . . . . . . . . Allies Melted . | . . . . . . . . . . . . . . . . . . . . . . Intel | -11 -10 -10 -9 -9 -9 -8 -8 -7 -7 -7 -6 -6 -6 -6 -6 -6 -5 -5 -4 -4 -4 ------- Run | Yrd Mat Min Mat Min Exi Min Mat Fac Was Fac Fac Was Fac Low Low Dat Pro Fac Fac Was Fac Active Infowar (turns) 6811 | 62 530 . . . . . 3 1898 22 1194 697 63 782 92 122 21 65 846 258 . 156 Optics 2191 | . . . . . . . . . . 382 419 63 782 92 122 21 65 245 . . . Sensors 4777 | . . . . . . . . 1577 22 1044 693 60 740 92 118 21 65 336 . . 9 IFF 4 | . . . . . . . . . . . 4 . . . . . . . . . . Structural 2416 | . 89 . . . . . . 1383 . 625 86 . . . . . . 86 . . 147 Seismic 1383 | 62 441 . . . . . . 622 . . . . . . . . . . 258 . . T.N.C. 55 | . . . . . . . 3 . . 52 . . . . . . . . . . . Cloaking 63 | . . . . . . . . . . . . . . . . . . 63 . . . ECM 370 | . . . . . . . . 27 . 5 . . . . . . . 338 . . . Robot Analysis Total 1 | . . . . . . . . . . . 1 . . . . . . . . . . Derelict Logs Recovered 6 | . . 2 . 1 . . . . . . . . . 1 1 . 1 . . . . Drone Launches 3 | . . . . . . . . . . . . . . . 1 . . 1 1 . . Drone Recoveries 3 | . . . . . . . . . . . . . . . 1 . . 1 1 . . Exploration | -11 -10 -10 -9 -9 -9 -8 -8 -7 -7 -7 -6 -6 -6 -6 -6 -6 -5 -5 -4 -4 -4 ------------- Run | Yrd Mat Min Mat Min Exi Min Mat Fac Was Fac Fac Was Fac Low Low Dat Pro Fac Fac Was Fac Turns Passed 18290 | 173 1941 678 3031 1358 869 882 2509 1926 22 1283 699 63 782 92 122 21 65 1165 335 53 221 Spaces Moved 21078 | 79 884 395 1093 541 377 367 789 4404 71 3273 1731 244 1212 408 477 91 284 3307 746 63 242 Core 25 | 8 . . . . . . . . . 1 . . . . . . . . 8 . 8 Treads 3607 | 71 684 . 943 541 377 367 624 . . . . . . . . . . . . . . Legs 48 | . . . . . . . 48 . . . . . . . . . . . . . . Wheels 745 | . 200 395 150 . . . . . . . . . . . . . . . . . . Hover 300 | . . . . . . . . . . . . . . . . . . . 3 63 234 Flight 16353 | . . . . . . . 117 4404 71 3272 1731 244 1212 408 477 91 284 3307 735 . . Fastest Speed 7 | 50 135 135 120 225 230 230 26 26 26 23 17 23 17 17 17 17 17 7 24 80 50 Average Speed 62 | 148 171 141 212 231 230 230 209 26 26 26 22 23 22 22 22 22 22 17 30 80 79 Slowest Speed 820 | 160 480 150 225 305 230 230 820 32 26 250 23 23 88 23 23 23 23 25 300 80 200 Overloaded Moves 547 | . . . . . . . . . . 16 49 . 14 47 26 2 37 292 64 . . Propulsion Burnouts . | . . . . . . . . . . . . . . . . . . . . . . Robots Hopped 132 | . . . . . . . 2 55 . 21 13 4 10 . 2 . 1 20 4 . . Potential Cave-ins 1 | . . . . . . . 1 . . . . . . . . . . . . . . Cave-ins Triggered . | . . . . . . . . . . . . . . . . . . . . . . Exploration Rate (%) 65 | 5 98 83 97 99 89 90 44 79 77 67 48 86 25 62 68 80 50 70 28 78 8 Regions Visited 21 Branch Regions 8 Pre-discovered Areas 14 | . 1 . 3 . . . 1 . . . 2 . . 1 . 1 1 4 . . . Known Exits Taken 11 | . . . 1 . 1 1 1 . . 1 . . 1 1 1 1 1 1 . . . Unknown Exits Taken 4 | 1 1 1 . 1 . . . . . . . . . . . . . . . . . Scrap Searched 12 | . . 1 . 3 . 1 . . . . . . . 2 2 . 3 . . . . Spaces Dug 188 | . . . 8 . . . 7 67 . 24 19 . 19 . 3 . . 34 7 . . Terrain Destroyed 538 | . . 9 14 54 . 87 67 166 . 46 32 . 19 . 3 . . 34 7 . . Melee 178 | . . . 7 . . . 7 58 . 24 19 . 19 . 3 . . 34 7 . . Projectile 9 | . . 2 7 . . . . . . . . . . . . . . . . . . AOE 351 | . . 7 . 54 . 87 60 108 . 22 13 . . . . . . . . . . Terrain Rammed . | . . . . . . . . . . . . . . . . . . . . . . Walls Destroyed . | . . . . . . . . . . . . . . . . . . . . . . Machines Disabled . | . . . . . . . . . . . . . . . . . . . . . . Actions | -11 -10 -10 -9 -9 -9 -8 -8 -7 -7 -7 -6 -6 -6 -6 -6 -6 -5 -5 -4 -4 -4 --------- Run | Yrd Mat Min Mat Min Exi Min Mat Fac Was Fac Fac Was Fac Low Low Dat Pro Fac Fac Was Fac Total 24621 | 106 1167 464 1565 607 380 389 1304 4938 73 3581 1961 246 1630 408 481 90 284 3797 828 64 258 Wait 2172 | 2 142 21 277 26 . 2 205 365 3 199 168 . 359 1 2 . . 366 34 . . Move 20805 | 78 883 394 1092 540 376 366 784 4298 70 3231 1705 237 1192 407 472 90 281 3266 739 62 242 Hop 123 | . . . . . . . 2 51 . 20 13 2 9 . 2 . 1 20 3 . . Pick Up 175 | 5 30 5 22 3 1 3 41 15 . 17 6 2 5 . . . 1 14 5 . . Fast Attach 91 | 7 3 . 5 . 1 1 17 11 . 8 5 1 2 . . . . 13 9 2 6 Attach 63 | . 6 1 4 4 . 1 14 4 . 7 4 . 3 . . . . 7 8 . . Detach 34 | . 1 . . . 2 . 8 1 . 5 5 . . . . . . 6 5 . 1 Swap 160 | . 8 7 15 9 . 5 36 22 . 16 10 1 8 . 2 . . 21 . . . Drop 138 | . 9 6 23 1 . 2 24 22 . 13 5 3 7 . . . 1 14 6 . 2 Fire 428 | 14 84 30 98 12 . 7 160 12 . 3 5 . 3 . . . . . . . . Melee 343 | . . . 7 . . . 9 110 . 62 35 . 42 . 3 . . 55 14 . 6 Ram 1 | . . . . . . . . . . . . . . . . . . . . . 1 Kick 1 | . . . . . . . 1 . . . . . . . . . . . . . . Crush 40 | . 1 . 22 12 . 2 3 . . . . . . . . . . . . . . Escape Stasis 47 | . . . . . . . . 27 . . . . . . . . . 15 5 . . Rewire . | . . . . . . . . . . . . . . . . . . . . . . Trap . | . . . . . . . . . . . . . . . . . . . . . . Miscellaneous . | . . . . . . . . . . . . . . . . . . . . . . Route ------- -11/Scrapyard -10/Materials (discovered 4 exits: *Mat x3 / *Min) -10/Mines (discovered 3 exits: *Mat x2 / Sub) -9/Materials (discovered 4 exits: *Mat x3 / *Min) -9/Mines (discovered 4 exits: *Mat x2 / *Exi / [*Zio]) -9/Exiles -8/Mines (discovered 2 exits: *Mat x2) -8/Materials -7/Factory (discovered 7 exits: *Fac x3 / *Sto x2 / *Low x2) -7/Waste -7/Factory (discovered 6 exits: *Fac x2 / *Sto x2 / *Low x2) -6/Factory (discovered 6 exits: Fac x4 / *Low x2) -6/Waste -6/Factory (discovered 4 exits: *Fac x2 / *Low x2) -6/Lower Caves -6/Lower Caves (discovered 2 exits: *Fac / *Dat) -6/Data Miner -5/Proximity Caves -5/Factory (discovered 8 exits: *Fac x4 / *Upp x2 / *Ext x2) -4/Factory -4/Waste -4/Factory History --------- Turn | Location | Event 2 | -11/Scrapyard | Met Revision 17 13 | -11/Scrapyard | Discovered new exit (range 15) 174 | -11/Scrapyard | Entered Materials 308 | -10/Materials | Build established: Mutant 494 | -10/Materials | Discovered new exit (range 10) 756 | -10/Materials | Central database locked down 837 | -10/Materials | Discovered new exit (range 11) 956 | -10/Materials | Discovered new exit (range 11) 1121 | -10/Materials | Destroyed 7 combat bots 1125 | -10/Materials | Discovered new exit (range 10) 2056 | -10/Materials | Repaired Lgt. Treads 2115 | -10/Materials | Entered Mines 2186 | -10/Mines | Discovered new exit (range 6) 2232 | -10/Mines | Found a damaged Exp. Sensor Array with a note attached 2237 | -10/Mines | Found Prototype Device 2373 | -10/Mines | Identified exit to Subcaves 2399 | -10/Mines | A weapon hastily lodged in a ceiling crevice suddenly fell to the ground 2566 | -10/Mines | Met a Derelict shopkeep closing up shop 2691 | -10/Mines | Excavation squad dispatched 2691 | -10/Mines | A large section of the Mines collapsed 2718 | -10/Mines | Discovered new exit (range 16) 2722 | -10/Mines | Core integrity fell below 50% 2793 | -10/Mines | Entered Materials 2793 | -9/Materials | Evolved 2 slots: Propulsion x1, Utility x1 2794 | -9/Materials | Identified exit to Mines 3723 | -9/Materials | Central database locked down 4478 | -9/Materials | Discovered new exit (range 5) 5009 | -9/Materials | Discovered new exit (range 5) 5395 | -9/Materials | Discovered new exit (range 16) 5443 | -9/Materials | Learned Recycling recycling unit intel 5521 | -9/Materials | Learned Storage terminal intel 5606 | -9/Materials | Identified exit to Materials 5824 | -9/Materials | Entered Mines 5825 | -9/Mines | A Derelict revealed a hidden shortcut to a safe place 5825 | -9/Mines | Assembled infested the area 5963 | -9/Mines | Lost 3 parts (2n1u) 6239 | -9/Mines | Deemed a non-threat by the Exiles lab entrance 6522 | -9/Mines | Discovered exit to Materials (range 9) 7029 | -9/Mines | Discovered exit to Materials (range 7) 7070 | -9/Mines | Received a Rocket Launcher from a helpful Derelict 7166 | -9/Mines | Discovered new exit (range 5) 7182 | -9/Mines | Entered Exiles 7182 | -9/Exiles | Accompanied by 2 allies 7183 | -9/Exiles | Identified exit to Mines 7212 | -9/Exiles | Led the pair of lost Derelicts to a safe place 7246 | -9/Exiles | Met 8R-AWN 7278 | -9/Exiles | Met EX-HEX 7365 | -9/Exiles | Met EX-DEC 7408 | -9/Exiles | Visited The Gauntlet 7717 | -9/Exiles | Met EX-BIN 7749 | -9/Exiles | Aligned with FarCom system 7752 | -9/Exiles | Given EX-Vault access code 7804 | -9/Exiles | Opened EX-Vault 7821 | -9/Exiles | Found Gui. Plasma Cannon 7829 | -9/Exiles | Found Supersonic Drone Bay 7876 | -9/Exiles | Warned to stay clear of 0b10 Research branches 8051 | -9/Exiles | Stole two prototypes: Gui. Plasma Cannon, Supersonic Drone Bay 8051 | -9/Exiles | Entered Mines 8234 | -8/Mines | Discovered exit to Materials (range 14) 8412 | -8/Mines | Discovered exit to Materials (range 4) 8933 | -8/Mines | Entered Materials 8933 | -8/Materials | Evolved 2 slots: Propulsion x1, Utility x1 9198 | -8/Materials | Garrison activated, responded to threat 9674 | -8/Materials | Lost 3 parts (1p1n1u) 9712 | -8/Materials | Lost 4 parts (3n1w) 10004 | -8/Materials | Build established: Scavenger-Mutant 10274 | -8/Materials | Core integrity fell below 50% 10765 | -8/Materials | Core integrity fell below 20% 10940 | -8/Materials | Central database locked down 10988 | -8/Materials | Discovered new exit (range 14) 11333 | -8/Materials | First assault squad dispatched 11440 | -8/Materials | Lost 3 parts (1n1u1w) 11442 | -8/Materials | Identified exit to Factory 11442 | -8/Materials | Entered Factory 11442 | -7/Factory | Evolved 2 slots: Utility x2 11442 | -7/Factory | Identified Exp. Sensor Array 11443 | -7/Factory | Identified exit to Storage 11444 | -7/Factory | FarCom data flow suspended 11716 | -7/Factory | Discovered new exit (range 11) 11726 | -7/Factory | Identified exit to Factory 12242 | -7/Factory | Search patrols dispatched 12320 | -7/Factory | Fabricated Exp. Sensor Array? 12380 | -7/Factory | Build established: Hacker-Scout 12595 | -7/Factory | Discovered new exit (range 9) 12597 | -7/Factory | Identified exit to Lower Caves 12642 | -7/Factory | Search patrols dispatched 12817 | -7/Factory | Discovered exit to Factory (range 15) 12838 | -7/Factory | Discovered exit to Storage (range 13) 12894 | -7/Factory | Cargo convoy interrupted 12928 | -7/Factory | Lost 3 parts (1p1n1w) 13042 | -7/Factory | Search patrols dispatched 13322 | -7/Factory | Build established: Hacker-Sprinter 13363 | -7/Factory | Discovered exit to Factory (range 7) 13368 | -7/Factory | Manually triggered Chute Trap 13368 | -7/Factory | Sucked down chute 13368 | -7/Factory | Entered Waste 13374 | -7/Waste | Spotted C-40 Crusher 13376 | -7/Waste | Spotted C-40 Crusher 13378 | -7/Waste | Spotted C-40 Crusher 13378 | -7/Waste | Spotted C-40 Crusher 13383 | -7/Waste | EMP discharged 13383 | -7/Waste | Spotted C-40 Crusher 13384 | -7/Waste | Spotted C-40 Crusher 13387 | -7/Waste | Discovered new exit (range 11) 13389 | -7/Waste | Identified exit to Factory 13390 | -7/Waste | Entered Factory 13465 | -7/Factory | Hacking Suite fried by hacking feedback 13574 | -7/Factory | Fabricated Cld. VTOL Module (x1) 13686 | -7/Factory | Core integrity fell below 50% 13695 | -7/Factory | Discovered exit to Lower Caves (range 17) 13761 | -7/Factory | Build established: Hacker-Scout 13822 | -7/Factory | Repaired Imp. Cesium-ion Thruster 13857 | -7/Factory | Discovered exit to Factory (range 7) 14097 | -7/Factory | Fabricated Cld. VTOL Module? 14165 | -7/Factory | Loaded intel: 108 trap records 14245 | -7/Factory | Learned 4 Lower Caves zone layouts 14377 | -7/Factory | Learned 4 Hub_04(d) zone layouts 14472 | -7/Factory | Repaired Enh. Nuclear Core? 14673 | -7/Factory | Entered another Factory area 14673 | -6/Factory | Evolved 2 slots: Propulsion x1, Utility x1 14674 | -6/Factory | Identified exit to Lower Caves 14880 | -6/Factory | Identified exit to Factory 14992 | -6/Factory | Learned Extension stockpile data 15113 | -6/Factory | Spotted B-75 Beast 15207 | -6/Factory | Learned location of Proximity Caves (-3) 15210 | -6/Factory | Fabricated Adv. Hacking Suite (x1) 15265 | -6/Factory | Fabricated Adv. Hacking Suite (x1) 15307 | -6/Factory | Learned Extension stockpile data 15372 | -6/Factory | Manually triggered Chute Trap 15372 | -6/Factory | Sucked down chute 15372 | -6/Factory | Entered Waste 15372 | -6/Waste | The area was eerily silent 15373 | -6/Waste | Identified exit to Factory 15435 | -6/Waste | Entered Factory 15604 | -6/Factory | Repaired Adv. Surge Thruster 15615 | -6/Factory | Unchained authorized (CL-0N3) 15692 | -6/Factory | Fabricated Adv. Surge Thruster (x2) 15749 | -6/Factory | Fabricated Exp. Sensor Array? 16186 | -6/Factory | R-10 Processor reconstituted as H-71 Marshal 16217 | -6/Factory | Entered Lower Caves 16217 | -6/Lower Caves | Accompanied by 1 ally 16218 | -6/Lower Caves | Identified exit to Lower Caves 16254 | -6/Lower Caves | Encountered a Warlord checkpoint 16257 | -6/Lower Caves | Entered an active Warlord outpost 16309 | -6/Lower Caves | Attracted the attention of an 0b10 checkpoint 16309 | -6/Lower Caves | Entered another Lower Caves area 16312 | -6/Lower Caves | Learned Factory stockpile data 16330 | -6/Lower Caves | Discovered exit to Factory (range 4) 16427 | -6/Lower Caves | Discovered new exit (range 11) 16429 | -6/Lower Caves | Encountered a Master Thief 16429 | -6/Lower Caves | Encountered a Master Thief 16430 | -6/Lower Caves | Encountered a Master Thief 16430 | -6/Lower Caves | Encountered a Master Thief 16431 | -6/Lower Caves | Encountered a Master Thief 16431 | -6/Lower Caves | Identified exit to Data Miner 16431 | -6/Lower Caves | Entered Data Miner 16431 | -6/Data Miner | Discovered new exit (range 6) 16434 | -6/Data Miner | Met Data Miner 16440 | -6/Data Miner | Learned location of Section 7 (-2) 16440 | -6/Data Miner | Acquired the access code to Warlord's prototype stash 16444 | -6/Data Miner | Received God Mode back door access code from Data Miner 16452 | -6/Data Miner | Identified exit to Proximity Caves 16452 | -6/Data Miner | Entered Proximity Caves 16475 | -5/Proximity Caves | Attracted the attention of an 0b10 checkpoint 16487 | -5/Proximity Caves | Learned location of Warlord (-4) 16489 | -5/Proximity Caves | Spotted B-75 Beast 16512 | -5/Proximity Caves | Discovered exit to Factory (range 20) 16517 | -5/Proximity Caves | Entered Factory 16517 | -5/Factory | Evolved 2 slots: Propulsion x1, Utility x1 16518 | -5/Factory | Identified exit to Upper Caves 16526 | -5/Factory | Discovered new exit (range 19) 16530 | -5/Factory | Identified exit to Factory 16731 | -5/Factory | Unchained authorized (CL-0N3) 16736 | -5/Factory | Discovered exit to Factory (range 8) 16882 | -5/Factory | U-05 Engineer reconstituted as D-83 Annihilator 16891 | -5/Factory | Spotted B-75 Beast 16964 | -5/Factory | Fabricated Exp. Hacking Suite? 16969 | -5/Factory | Identified exit to Extension 17012 | -5/Factory | Learned Research interactive machine intel 17026 | -5/Factory | Repaired Adv. Surge Thruster 17045 | -5/Factory | Learned location of 1 exit from Upper Caves 17069 | -5/Factory | Loaded intel: 28 terminal locations 17081 | -5/Factory | Loaded intel: 72 trap records 17083 | -5/Factory | Loaded intel: 4 garrison access locations 17084 | -5/Factory | Learned location of Upper Caves (-5) 17085 | -5/Factory | Learned 2 Upper Caves zone layouts 17102 | -5/Factory | Discovered exit to Factory (range 4) 17117 | -5/Factory | Search patrols dispatched 17401 | -5/Factory | K-01 Serf reconstituted as Executioner 17401 | -5/Factory | Spotted Executioner 17417 | -5/Factory | Search patrols dispatched 17481 | -5/Factory | Fabricated Exp. Hacking Suite? 17537 | -5/Factory | System corruption reached 10% 17553 | -5/Factory | Cargo convoy interrupted 17578 | -5/Factory | Incoming assault squad redirected 17679 | -5/Factory | Lost 11 parts (1p6n3u1w) 17682 | -5/Factory | Entered another Factory area 17682 | -4/Factory | Evolved 2 slots: Utility x2 17713 | -4/Factory | Incoming investigation squad redirected 17746 | -4/Factory | Spotted B-86 Titan 17772 | -4/Factory | Incoming investigation squad redirected 17789 | -4/Factory | Spotted B-86 Titan 18017 | -4/Factory | Manually triggered Chute Trap 18017 | -4/Factory | Sucked down chute 18017 | -4/Factory | Entered Waste 18032 | -4/Waste | EMP discharged 18032 | -4/Waste | System corruption reached 10% 18032 | -4/Waste | Spotted C-40 Crusher 18033 | -4/Waste | Spotted C-40 Crusher 18038 | -4/Waste | Crushed by Compactor (0 parts destroyed, 1 dropped) 18041 | -4/Waste | Spotted C-40 Crusher 18050 | -4/Waste | Spotted C-40 Crusher 18052 | -4/Waste | Spotted C-40 Crusher 18057 | -4/Waste | Found Prototype Device 18057 | -4/Waste | Identified Exp. EM Disruption Field 18061 | -4/Waste | Discovered new exit (range 12) 18069 | -4/Waste | Identified exit to Factory 18070 | -4/Waste | Entered Factory 18259 | -4/Factory | Core integrity fell below 50% 18264 | -4/Factory | Build established: Hacker-Mutant 18284 | -4/Factory | Spotted B-86 Titan 18288 | -4/Factory | Core integrity fell below 20% 18291 | -4/Factory | Destroyed by B-86 Titan with Matter Neutralizer Last Messages --------------- 18238_ System corrupted: Energy discharge (-54). 18242_ Acquired Unknown Device. 18242_ Identified Imp. Focal Shield. 18243_ Dropped Imp. Focal Shield. 18253_ AZ XUL3C&% MJYRQLZJ, CKD MLPX9J8HX 18254_ Slammed into G-67 Veteran. 18257_ Centrium Greatsword destroyed. 18261_ Mic. Fission Core destroyed. 18285_ System corrupted: Component data lost. 18285_ Slug penetrates Wall. 18285_ Dropped Cmb. Gravmag System. 18287_ Triggered Fusion Bomb Trap. 18287_ An explosion rips through the floor. 18287_ Fusion Modulator explodes. 18287_ Fabricator disabled. 18287_ Fusion Modulator explodes. 18287_ A-15 Conveyor destroyed. 18288_ Knocked back. 18289_ Acquired Prototype Launcher. 18289_ Identified Hvy. Proton Missile Launcher. Map ----- +----------------------------------------------------+ | ?????????????????????????????????????????????????? | | ?????????????????????????????????????????????????? | | ?????????????????????????????????????????????????? | | ?????????????????????????????????????????????????? | | ?????????????????????????????????????????????????? | | ?????????????????????????????????????????????????? | | ?????????????????????????????????????????????????? | | ?????????????????????????????????????????????????? | | ?????????????????????????????????????????????????? | | ?????????????????????????????????????????????????? | | ?????????????????????????????????????????????????? | | ?????????????????????????????????????????????????? | | ?????????????????????????????????????????????????? | | ?????????????????????????????????????????????????? | | ?????????????????????????????????????????????????? | | ?????????????????????????????????????????????????? | | ?????????????????????????????????????????????????? | | ?????????????????????????????????????????????????? | | ????????????????????????????????? ??????????????? | | ???????????????????????????????? ??????????? | | ??????????????????????????????? ??????????? | | ?????????????????????????????? ????????????? | | ???????????????????? # ##?????????????? | | ??????????????????#######+### # ?????????????? | | ??????????????????#### * # ?????????????? | | ?????????????????###"" ]@] # ?????????????? | | ?????????????????###" %] # ""???????????? | | ???????# ?????## " ]]* ; ?????????? | | ???###?#####?###?## ; ?????????? | | ???## #####; ; ?????????? | | ???## ##### % ?????????? | | ???## """ """ # #####?????????? | | ???## """ """ # !;#####?????????? | | ???## """ """ + !! ;###???????????? | | ???## # = ! BB##???????????? | | ???## ; ! / BB##???????????? | | ##### # #####;;;;;;;;;####???????????? | | #########+##### ##### #???????????? | | # ##??? """ """ ?????????????? | | # ##??? """ ""???????????????? | | # ##??? ""??"????????????????? | | + ##??? ???????????????????? | | # ##???? "????????????????????? | | # ################???? "????????????????????? | | # ################???????????????????????????? | | # ##?????????????????????????????????????????? | | # ##?????????????????????????????????????????? | | # ##?????????????????????????????????????????? | | / ##?????????????????????????????????????????? | | # ###############????????????????????????????? | +----------------------------------------------------+ Best States ------------- Heat Dissipation 59 Energy Generation 24 Energy Capacity 350 Matter Stores 300 Matter Capacity 300 Sight Range 22 Robot Scan Range 20 Terrain Scan Density 10 ECM Strength 2 Cloak Strength 2 Power Amplification 20 Armor Coverage 450 Resistance: EM 15 Core Shielding 20 Propulsion Shielding 33 Evasion (%) 67 Target Analysis 5 Recoil Reduction 4 Salvage Targeting 1 Offensive Hacking 46 Defensive Hacking 28 Authchip Count 2 Item Schematics ----------------- Signal Interpreter | -10/Materials | Hacked Heat Sink | -9/Materials | Hacked Sensor Array | -9/Materials | Scanalyzed VTOL Module | -9/Materials | Scanalyzed Core Shielding | -8/Materials | Scanalyzed Exp. Sensor Array | -7/Factory | Scanalyzed Cld. VTOL Module | -7/Factory | Scanalyzed Lrg. Storage Unit | -7/Factory | Hacked Imp. Hacking Suite | -7/Factory | Hacked Adv. Hacking Suite | -6/Factory | Hacked Adv. Surge Thruster | -6/Factory | Scanalyzed Combat Drone Bay | -6/Data Miner | Free Lgt. Regenerative Plating | -6/Data Miner | Free Enh. Armored Leg | -6/Data Miner | Free Exp. Heat Sink | -6/Data Miner | Free Hvy. Gatling Laser | -6/Data Miner | Free Imp. Linear Gravjet | -6/Data Miner | Free Adv. Thermal Generator | -6/Data Miner | Free Hvy. Disruptor Cannon | -6/Data Miner | Free Arm. Medium Treads | -6/Data Miner | Free Exp. Hacking Suite | -5/Factory | Hacked Exp. System Shield | -5/Factory | Hacked Q-thruster | -5/Factory | Hacked Robot Schematics ------------------ R-10 Processor | -6/Data Miner | Free A-15 Conveyor | -6/Data Miner | Free S-27 Virus | -6/Data Miner | Free Y-64 Sentinel | -6/Data Miner | Free W-44 Eye | -6/Data Miner | Free A-27 Freighter | -6/Data Miner | Free Fabricated ------------ Exp. Sensor Array | x1 | -7/Factory Cld. VTOL Module | x1 | -7/Factory | Authchip Cld. VTOL Module | x1 | -7/Factory Adv. Hacking Suite | x1 | -6/Factory Adv. Hacking Suite | x1 | -6/Factory Adv. Surge Thruster | x2 | -6/Factory | Authchip Exp. Sensor Array | x1 | -6/Factory Exp. Hacking Suite | x1 | -5/Factory | Authchip Exp. Hacking Suite | x1 | -5/Factory | Authchip Repaired ---------- Lgt. Treads | 56% | -10/Materials Imp. Cesium-ion Thruster | 20% | -7/Factory Enh. Nuclear Core | 16% | -7/Factory Adv. Surge Thruster | 11% | -6/Factory Adv. Surge Thruster | 6% | -5/Factory Studied --------- VTOL Module | -8/Materials | Hacked Remote Datajack | -6/Factory | Hacked Power Sword | -5/Factory | Hacked Alien Tech Used ----------------- None Achievements -------------- Bending The Rules Express Service Official Business Production Line Recruitment Drive Suspicious By Nature The Better Part Of Valor Wheee! Challenges ------------ None Game ------ Seed MatterAlphaLance Manual? 0 Play Time 05:14:04 Cumulative 153.7 hours Start 2026.01.27 @ 14:41:19 End 2026.01.27 @ 22:03:26 Sessions 3 Manual Loads 0 Difficulty Rogue Special Mode None Game No. 189 Rogue 184 Adventurer 5 Explorer 0 Win Type - Total 5 Types 4/0/0/1/0/0/0/0/0/0 Lore% 45 Gallery% 61 Achievement% 49 Wizard Run 0 Options --------- Layout 0 ASCII 0 Keyboard 1 Movement Vi Keybinds 0 Fullscreen 1 Font 24/Terminus Map View 76x50 Zoom Use 0% Tactical HUD 1 Map Filters NONE Filters NONE Steam 1 RUN: 82f0720c-8ed4-4cf5-a94f-26664ca3c001